[Event "WYCC 2018 G16"]
[Site "Halkidiki"]
[Date "2018.10.29"]
[Round "10"]
[White "Shanya Mishra"]
[Black "Serikbay, Assel"]
[Result "0-1"]
[ECO "D15"]
[WhiteElo "1924"]
[BlackElo "2166"]
[Annotator "NA"]
[PlyCount "84"]
[EventDate "2018.10.20"]
[EventType "swiss"]
[EventCountry "GRE"]
[SourceTitle "playchess.com"]
[Source "ChessBase"]
[SourceQuality "1"]
[TimeControl "40/5400+30:1800+30"]

1. d4 {[%emt 0:00:00]} d5 {[%emt 0:00:00]} 2. c4 {[%emt 0:00:20]} c6 {[%emt 0:00:00]} 3. Nf3 {[%emt 0:00:38]} Nf6 {[%emt 0:00:00]} 4. Nc3 {[%emt 0:00:49]} a6 {[%emt 0:00:00]} 5. c5 {[%emt 0:01:14]} Nbd7 {[%emt 0:00:16]} 6. Bf4 {[%emt 0:00:56]} Nh5 {[%emt 0:00:48]} 7. Bd2 {[%emt 0:01:20]} Nhf6 {[%emt 0:01:16]} 8. Bf4 {[%emt 0:02:56]} ({Günstiger ist} 8. Rc1 $14) 8... Nh5 {[%emt 0:02:52]} 9. Bd2 {[%emt 0:00:14]} Nhf6 {[%emt 0:08:28]} 10. h3 $11 {[%emt 0:01:36] LiveBook: 41 Partien} Qc7 {[%emt 0:00:46]} 11. g3 {[%emt 0:04:00]} e5 {[%emt 0:05:10]} 12. dxe5 {[%emt 0:03:21]} Nxe5 {[%emt 0:00:06]} 13. Nxe5 {[%emt 0:00:22]} Qxe5 {[%emt 0:00:06]} 14. Bf4 {[%emt 0:01:27]} Qe6 {[%emt 0:03:49]} 15. Qd4 {[%emt 0:03:39]} Nd7 {[%emt 0:09:03]} 16. Na4 {[%emt 0:05:25]} Be7 {[%emt 0:03:42]} 17. Bg2 {[%emt 0:05:42]} O-O {[%emt 0:03:16]} 18. O-O {[%emt 0:05:02]} Bf6 {[%emt 0:02:54]} 19. Qd2 {[%emt 0:02:04]} Be5 {[%emt 0:02:38]} 20. Rfe1 {[%emt 0:05:32]} f5 {[%emt 0:03:46]} 21. Rac1 {[%emt 0:03:39]} Rb8 {[%emt 0:06:36]} 22. b4 {[%emt 0:04:07]} Nf6 {[%emt 0:05:55]} 23. Bxe5 {[%emt 0:17:10]} Qxe5 {[%emt 0:00:05]} 24. f4 {[%emt 0:00:08]} Qe7 {[%emt 0:04:18]} 25. Qd4 {[%emt 0:03:59]} Ne4 {[%emt 0:03:33]} 26. Kh2 {[%emt 0:02:06]} h5 {[%emt 0:03:05]} 27. h4 {[%emt 0:01:18]} Rf6 {[%emt 0:04:39]} 28. Rcd1 {[%emt 0:06:49]} Rg6 {[%emt 0:00:55]} 29. Rd3 {[%emt 0:04:49]} Nxg3 {[%emt 0:14:50]} 30. Rxg3 {[%emt 0:01:09]} Qxh4+ {[%emt 0:00:02]} 31. Rh3 {[%emt 0:00:07]} Qxe1 {[%emt 0:00:07]} 32. Qe5 {[%emt 0:00:13]} h4 {[%emt 0:00:19]} 33. Rf3 {[%emt 0:05:30]} Kh7 {[%emt 0:02:00]} 34. Bf1 {[%emt 0:01:36]} Be6 {[%emt 0:07:14]} 35. Qxb8 {[%emt 0:01:19]} Qxb4 {[%emt 0:00:55]} 36. Nc3 {[%emt 0:03:42]} Qxc5 {[%emt 0:02:43]} 37. Bg2 {[%emt 0:00:35]} d4 {[%emt 0:00:42]} 38. Nd1 {[%emt 0:00:12]} Bd5 {[%emt 0:01:08]} 39. Qe5 {[%emt 0:01:17]} Qc2 {[%emt 0:00:26]} 40. Qxd4 {[%emt 0:00:00]} Qxe2 {[%emt 0:00:00]} 41. Qf2 {[%emt 0:05:45]} Qxd1 {[%emt 0:01:22]} 42. Qxh4+ {[%emt 0:01:07]} Rh6 {[%emt 0:00:05]} 0-1

[Event "WYCC 2018 G16"]
[Site "Halkidiki"]
[Date "2018.10.29"]
[Round "10"]
[White "Esadze, Tamari"]
[Black "Grigorieva, Yulia"]
[Result "0-1"]
[ECO "C60"]
[WhiteElo "1911"]
[BlackElo "2112"]
[Annotator "NA"]
[PlyCount "66"]
[EventDate "2018.10.20"]
[EventType "swiss"]
[EventCountry "GRE"]
[SourceTitle "playchess.com"]
[Source "ChessBase"]
[SourceQuality "1"]
[TimeControl "40/5400+30:1800+30"]

1. e4 {[%emt 0:00:00]} e5 {[%emt 0:00:00]} 2. Nf3 {[%emt 0:00:00]} Nc6 {[%emt 0:00:00]} 3. Bb5 {[%emt 0:00:00]} g6 {[%emt 0:00:05]} 4. O-O {[%emt 0:00:15]} Bg7 {[%emt 0:00:22]} 5. c3 {[%emt 0:00:26]} a6 {[%emt 0:00:40]} 6. Ba4 {[%emt 0:00:14]} d6 {[%emt 0:00:52]} 7. h3 {[%emt 0:01:09]} Bd7 {[%emt 0:05:02]} 8. d4 {[%emt 0:00:27]} b5 {[%emt 0:04:54]} 9. Bc2 {[%emt 0:01:16]} Nf6 {[%emt 0:01:22]} 10. Re1 {[%emt 0:05:36]} O-O {[%emt 0:00:39]} 11. a4 $11 {[%emt 0:03:32]} Re8 {[%emt 0:09:20]} 12. Nbd2 {[%emt 0:06:18]} exd4 {[%emt 0:05:07]} 13. Nxd4 {[%emt 0:05:48]} Nxd4 {[%emt 0:04:49]} 14. cxd4 {[%emt 0:00:05]} c5 {[%emt 0:02:26]} 15. d5 {[%emt 0:16:56]} c4 {[%emt 0:09:53]} 16. a5 {[%emt 0:09:49]} Qc7 {[%emt 0:05:04]} 17. Nf3 {[%emt 0:03:44]} b4 {[%emt 0:03:13]} 18. Nd4 {[%emt 0:11:50]} Nxd5 {[%emt 0:18:09]} 19. exd5 {[%emt 0:14:45]} Rxe1+ {[%emt 0:00:14]} 20. Qxe1 {[%emt 0:00:02]} Bxd4 {[%emt 0:00:13]} 21. Qxb4 {[%emt 0:00:17]} Rb8 {[%emt 0:05:00]} 22. Qa3 {[%emt 0:01:01]} Rb5 {[%emt 0:02:06]} 23. Be4 {[%emt 0:10:38]} Rb3 {[%emt 0:02:28]} 24. Qa2 {[%emt 0:00:06]} Qc5 {[%emt 0:01:25]} 25. Kh1 {[%emt 0:02:33]} Bxf2 {[%emt 0:03:01]} 26. Bf3 {[%emt 0:03:03]} Qb4 {[%emt 0:04:23]} 27. Kh2 {[%emt 0:01:21]} h5 {[%emt 0:03:32]} 28. h4 {[%emt 0:00:47]} c3 {[%emt 0:00:53]} 29. g3 {[%emt 0:00:22]} cxb2 {[%emt 0:00:36]} 30. Rb1 {[%emt 0:00:51]} Bxg3+ {[%emt 0:01:46]} 31. Kxg3 {[%emt 0:00:42]} Qe1+ {[%emt 0:00:16]} 32. Kg2 {[%emt 0:00:32]} Bh3+ {[%emt 0:00:32]} 33. Kh2 {[%emt 0:00:06]} Qf2+ {[%emt 0:00:23]} 0-1

[Event "WYCC 2018 G16"]
[Site "Halkidiki"]
[Date "2018.10.29"]
[Round "10"]
[White "Xing, Ashley"]
[Black "Salonika, Saina"]
[Result "0-1"]
[ECO "E92"]
[WhiteElo "1889"]
[BlackElo "2093"]
[Annotator "NA"]
[PlyCount "82"]
[EventDate "2018.10.20"]
[EventType "swiss"]
[EventCountry "GRE"]
[SourceTitle "playchess.com"]
[Source "ChessBase"]
[SourceQuality "1"]
[TimeControl "40/5400+30:1800+30"]

1. d4 {[%emt 0:00:00]} Nf6 {[%emt 0:00:00]} 2. c4 {[%emt 0:00:00]} g6 {[%emt 0:00:00]} 3. Nc3 {[%emt 0:00:00]} Bg7 {[%emt 0:00:00]} 4. e4 {[%emt 0:00:00]} d6 {[%emt 0:00:00]} 5. Nf3 {[%emt 0:00:00]} O-O {[%emt 0:00:00]} 6. Be2 {[%emt 0:00:07]} e5 {[%emt 0:00:00]} 7. d5 {[%emt 0:00:05]} a5 {[%emt 0:00:01]} 8. Bg5 {[%emt 0:00:19]} h6 {[%emt 0:00:53]} 9. Bh4 {[%emt 0:00:59]} g5 {[%emt 0:00:06]} 10. Bg3 {[%emt 0:00:05]} Nh5 {[%emt 0:00:07]} 11. Nd2 {[%emt 0:00:47]} Nf4 {[%emt 0:03:06]} 12. O-O {[%emt 0:00:23]} Nd7 {[%emt 0:07:31]} 13. Bg4 {[%emt 0:06:37]} Nc5 {[%emt 0:08:27]} 14. f3 {[%emt 0:03:40] E93: Königsindisch (Klassisches System)} Ncd3 {[%emt 0:08:41]} 15. b3 $146 {[%emt 0:06:01]} ({Vorgänger:} 15. Qc2 h5 16. Bxc8 Qxc8 17. a3 Bh6 18. Bxf4 Nxf4 19. Rf2 g4 20. Nf1 h4 21. fxg4 Qxg4 {½-½ (54) Roselli Mailhe,B (2439)-Baules,J (2358) Batumi 2018}) 15... c6 {[%emt 0:07:40]} 16. Bf2 {[%emt 0:09:53]} f5 {[%emt 0:06:30]} 17. Bxf5 {[%emt 0:04:11]} Bxf5 {[%emt 0:00:13]} 18. exf5 {[%emt 0:00:19]} Nxf2 {[%emt 0:09:24]} 19. Rxf2 {[%emt 0:01:14]} Nd3 {[%emt 0:05:36]} (19... cxd5 $142 20. Nxd5 Nxd5 21. cxd5 e4 22. fxe4 Bd4) 20. Re2 {[%emt 0:07:10]} Qb6+ {[%emt 0:00:24]} 21. Kf1 {[%emt 0:02:05]} Nf4 {[%emt 0:00:19]} 22. Rf2 {[%emt 0:11:11]} cxd5 {[%emt 0:06:51]} 23. Nxd5 {[%emt 0:15:33]} Nxd5 {[%emt 0:00:41]} 24. cxd5 {[%emt 0:00:05]} e4 {[%emt 0:06:29]} 25. fxe4 {[%emt 0:00:50]} Bxa1 {[%emt 0:01:06]} 26. Qxa1 {[%emt 0:00:05]} a4 $11 {[%emt 0:03:37]} 27. Qd1 {[%emt 0:10:25]} axb3 {[%emt 0:01:43]} 28. Nxb3 {[%emt 0:02:34]} Qe3 {[%emt 0:02:22]} 29. Qh5 {[%emt 0:02:37]} Qd3+ {[%emt 0:03:31]} 30. Kg1 {[%emt 0:01:11]} Rf6 {[%emt 0:01:10]} 31. h4 {[%emt 0:06:10]} Qxe4 {[%emt 0:02:51]} 32. hxg5 {[%emt 0:02:07]} Qe1+ {[%emt 0:00:06]} 33. Kh2 {[%emt 0:02:37]} Qxf2 {[%emt 0:00:07]} 34. gxf6 {[%emt 0:00:12]} Qf4+ {[%emt 0:00:04]} 35. Kh3 {[%emt 0:02:04]} Qg5 {[%emt 0:01:22]} 36. Qg6+ {[%emt 0:02:35]} Qxg6 {[%emt 0:01:23]} 37. fxg6 {[%emt 0:00:06]} Rf8 {[%emt 0:00:14]} 38. f7+ {[%emt 0:02:18]} Kg7 {[%emt 0:00:16]} 39. Na5 {[%emt 0:00:15]} Kxg6 {[%emt 0:00:33]} 40. Nxb7 {[%emt 0:00:00]} Rxf7 {[%emt 0:00:00]} 41. Nxd6 {[%emt 0:00:41]} Rd7 {[%emt 0:00:18]} 0-1

[Event "WYCC 2018 G16"]
[Site "Halkidiki"]
[Date "2018.10.29"]
[Round "10"]
[White "Skaslien, Ingrid"]
[Black "Nayberg, Simona"]
[Result "1-0"]
[ECO "D45"]
[WhiteElo "1885"]
[BlackElo "1857"]
[Annotator "NA"]
[PlyCount "143"]
[EventDate "2018.10.20"]
[EventType "swiss"]
[EventCountry "GRE"]
[SourceTitle "playchess.com"]
[Source "ChessBase"]
[SourceQuality "1"]
[TimeControl "40/5400+30:1800+30"]

1. d4 {[%emt 0:00:00]} d5 {[%emt 0:00:00]} 2. c4 {[%emt 0:00:00]} e6 {[%emt 0:00:00]} 3. Nc3 {[%emt 0:00:00]} c6 {[%emt 0:00:00]} 4. e3 {[%emt 0:00:04]} Nf6 {[%emt 0:00:21]} 5. Nf3 {[%emt 0:00:24]} Nbd7 {[%emt 0:00:09]} 6. Qc2 {[%emt 0:00:33]} Bd6 {[%emt 0:00:14]} 7. b3 {[%emt 0:00:42]} O-O {[%emt 0:00:40]} 8. Be2 {[%emt 0:00:27]} dxc4 {[%emt 0:04:48]} 9. bxc4 {[%emt 0:00:17]} e5 {[%emt 0:00:25]} 10. O-O {[%emt 0:00:28]} Re8 {[%emt 0:06:01]} 11. Re1 {[%emt 0:04:26]} b6 {[%emt 0:03:49]} 12. Bb2 {[%emt 0:04:12]} Bb7 {[%emt 0:00:27]} 13. Rad1 {[%emt 0:02:57]} Qc7 {[%emt 0:02:41]} 14. Nd2 {[%emt 0:05:26]} exd4 {[%emt 0:04:49]} 15. exd4 {[%emt 0:00:32]} Bxh2+ {[%emt 0:00:11]} 16. Kh1 {[%emt 0:01:23]} Bd6 {[%emt 0:11:34]} 17. Bf3 {[%emt 0:07:08]} Rxe1+ {[%emt 0:09:55]} 18. Rxe1 {[%emt 0:00:15]} Re8 {[%emt 0:01:36]} 19. Rxe8+ Nxe8 20. Qf5 {[%emt 0:22:52]} Ndf6 {[%emt 0:13:19]} 21. d5 {[%emt 0:13:21]} Bc8 {[%emt 0:04:29]} 22. Qd3 {[%emt 0:02:29]} Qe7 {[%emt 0:09:45]} 23. Nce4 {[%emt 0:10:18]} cxd5 {[%emt 0:13:13]} 24. Nxd6 {[%emt 0:04:25]} Nxd6 {[%emt 0:01:05]} 25. Bxf6 {[%emt 0:02:50]} Qxf6 {[%emt 0:02:57]} 26. cxd5 {[%emt 0:03:11]} Bf5 {[%emt 0:02:48]} 27. Qa3 {[%emt 0:02:01]} Nb5 {[%emt 0:02:01]} 28. Qa4 {[%emt 0:00:53]} Nd6 {[%emt 0:00:00]} 29. Qxa7 {[%emt 0:00:51]} Qa1+ 30. Kh2 Qe5+ 31. g3 g5 32. Qxb6 Bg6 33. Qe3 Qf5 34. g4 Qf6 35. Kg2 Qd8 36. Qe5 f6 37. Qd4 Qe7 38. Qe3 Qd7 39. Qe6+ Qxe6 40. dxe6 Kf8 41. Bd5 Ke7 42. Kf3 f5 43. Nc4 Nb5 44. Ne5 Nd4+ 45. Ke3 Nc2+ 46. Kd2 Nb4 47. Nxg6+ hxg6 48. Bb3 Kd6 49. Ke3 Nc6 50. gxf5 gxf5 51. Ba4 Ne7 52. Bd7 Ke5 53. a4 f4+ 54. Kf3 Kf5 55. a5 g4+ 56. Ke2 Nd5 57. a6 Kf6 58. a7 Nc7 59. Kd3 g3 60. fxg3 fxg3 61. Ke2 Ke7 62. Kf3 Kd6 63. Kxg3 Na8 64. Kf4 Kc7 65. Ke5 Nb6 66. Ke4 Kd6 67. Kd4 Na8 68. Kc4 Kc7 69. Kc5 Nb6 70. Kb5 Na8 71. Ka6 Nb6 72. e7 1-0

[Event "WYCC 2018 G16"]
[Site "Halkidiki"]
[Date "2018.10.29"]
[Round "10"]
[White "Tejasvi M"]
[Black "Akti, Ezgi"]
[Result "1/2-1/2"]
[ECO "C50"]
[WhiteElo "1869"]
[BlackElo "1643"]
[Annotator "NA"]
[PlyCount "51"]
[EventDate "2018.10.20"]
[EventType "swiss"]
[EventCountry "GRE"]
[SourceTitle "playchess.com"]
[Source "ChessBase"]
[SourceQuality "1"]
[TimeControl "40/5400+30:1800+30"]

1. e4 {[%emt 0:00:40]} e5 {[%emt 0:00:00]} 2. Nf3 {[%emt 0:00:06]} Nc6 {[%emt 0:00:00]} 3. Bc4 {[%emt 0:00:07]} Be7 {[%emt 0:01:01]} 4. c3 {[%emt 0:03:35]} Nf6 {[%emt 0:01:37]} 5. d3 {[%emt 0:00:19]} d6 {[%emt 0:03:15]} 6. Bb3 {[%emt 0:00:16]} O-O {[%emt 0:01:58]} 7. Nbd2 {[%emt 0:00:25]} Na5 {[%emt 0:01:04]} 8. Bc2 {[%emt 0:00:34]} c5 {[%emt 0:00:16]} 9. Nf1 {[%emt 0:02:23]} Nc6 {[%emt 0:05:00]} 10. Ng3 {[%emt 0:02:09]} h6 {[%emt 0:00:24]} 11. O-O {[%emt 0:07:47]} Re8 {[%emt 0:02:49]} 12. h3 {[%emt 0:04:21]} Bf8 {[%emt 0:00:50]} 13. d4 {[%emt 0:11:05]} exd4 {[%emt 0:14:51]} 14. cxd4 {[%emt 0:00:35]} cxd4 {[%emt 0:00:20]} 15. Nxd4 {[%emt 0:01:07]} d5 {[%emt 0:05:41]} 16. exd5 {[%emt 0:13:18]} Qxd5 {[%emt 0:00:49]} 17. Nxc6 {[%emt 0:01:35]} Qxc6 {[%emt 0:04:11]} 18. Be3 {[%emt 0:16:49]} Be6 {[%emt 0:11:59]} 19. Ba4 {[%emt 0:10:39]} b5 {[%emt 0:00:31]} 20. Rc1 {[%emt 0:03:15]} Qb7 {[%emt 0:02:41]} 21. Bb3 {[%emt 0:00:17]} Red8 {[%emt 0:04:34]} 22. Qe2 {[%emt 0:01:02]} Bxb3 {[%emt 0:01:40]} 23. axb3 {[%emt 0:00:02]} a6 {[%emt 0:13:39]} 24. Rcd1 {[%emt 0:07:18]} Rxd1 {[%emt 0:04:16]} 25. Rxd1 {[%emt 0:00:13]} Qe7 {[%emt 0:04:58]} 26. Qf3 {[%emt 0:06:44]} 1/2-1/2

[Event "WYCC 2018 G16"]
[Site "Halkidiki"]
[Date "2018.10.29"]
[Round "10"]
[White "Puppi Lazo, Stephanie Beatriz"]
[Black "Urh, Zala"]
[Result "0-1"]
[ECO "C45"]
[WhiteElo "1847"]
[BlackElo "2066"]
[Annotator "NA"]
[PlyCount "100"]
[EventDate "2018.10.20"]
[EventType "swiss"]
[EventCountry "GRE"]
[SourceTitle "playchess.com"]
[Source "ChessBase"]
[SourceQuality "1"]
[TimeControl "40/5400+30:1800+30"]

1. e4 {[%emt 0:00:00]} e5 {[%emt 0:00:00]} 2. Nf3 {[%emt 0:00:00]} Nc6 {[%emt 0:00:00]} 3. d4 {[%emt 0:00:00]} exd4 {[%emt 0:00:00]} 4. Nxd4 {[%emt 0:00:00]} Bc5 {[%emt 0:00:24]} 5. Nb3 {[%emt 0:00:00]} Bb6 {[%emt 0:00:16]} 6. Nc3 {[%emt 0:00:00]} Nf6 {[%emt 0:00:11]} 7. Bg5 {[%emt 0:00:04]} h6 {[%emt 0:01:27]} 8. Bh4 {[%emt 0:00:08]} O-O {[%emt 0:07:21] C45: Scotch Game} 9. Qe2 {[%emt 0:02:18]} a5 {[%emt 0:01:41]} 10. a4 {[%emt 0:01:57]} Nd4 {[%emt 0:01:46]} 11. Qd3 {[%emt 0:02:29]} Nxb3 {[%emt 0:00:13]} 12. cxb3 {[%emt 0:00:03]} c6 {[%emt 0:01:25]} 13. O-O-O {[%emt 0:01:27]} d5 {[%emt 0:01:39] [#]} 14. e5 $146 {[%emt 0:24:02]} ({Predecessor:} 14. exd5 cxd5 15. Bxf6 Qxf6 16. Nxd5 Qxf2 {½-½ (72) Vitiugov,N (2730)-Oparin,G (2609) Linares 2018}) 14... g5 {[%emt 0:00:14]} 15. exf6 {[%emt 0:02:56]} gxh4 {[%emt 0:00:09]} 16. Qf3 {[%emt 0:00:10]} Qd6 {[%emt 0:00:24]} 17. g3 {[%emt 0:20:12]} Bd8 {[%emt 0:08:29]} 18. Rd4 {[%emt 0:03:38]} Qxf6 {[%emt 0:14:22]} 19. Rf4 {[%emt 0:00:19]} Qe5 {[%emt 0:00:59]} 20. gxh4 {[%emt 0:00:53]} Be6 {[%emt 0:01:16]} 21. Bd3 {[%emt 0:01:38]} Kh8 $15 {[%emt 0:03:58]} 22. Kd2 {[%emt 0:07:17]} d4 {[%emt 0:06:30]} 23. Ne4 {[%emt 0:01:10]} f5 {[%emt 0:01:12]} 24. Ng3 {[%emt 0:09:32]} Bd5 {[%emt 0:05:53]} 25. Be4 {[%emt 0:00:30]} Bc7 {[%emt 0:00:50]} 26. Rxf5 {[%emt 0:00:25]} Rxf5 {[%emt 0:00:19]} 27. Qxf5 {[%emt 0:02:39]} Qxf5 {[%emt 0:00:12]} 28. Bxf5 {[%emt 0:00:13]} Bxh1 {[%emt 0:04:40]} 29. Nxh1 {[%emt 0:00:04]} Bxh2 {[%emt 0:01:36]} 30. Kd3 {[%emt 0:00:54]} c5 {[%emt 0:01:31]} 31. h5 {[%emt 0:00:55]} b6 {[%emt 0:01:03]} 32. f3 {[%emt 0:00:47]} Re8 {[%emt 0:01:14]} 33. Be4 {[%emt 0:00:20]} Re5 {[%emt 0:00:07]} 34. Nf2 {[%emt 0:00:31]} Rxh5 {[%emt 0:00:14]} 35. Ng4 {[%emt 0:00:18]} Kg7 {[%emt 0:01:05]} 36. Kc4 {[%emt 0:00:24]} Bc7 {[%emt 0:01:36]} 37. Kb5 {[%emt 0:00:38]} Rg5 {[%emt 0:04:38]} 38. Kc6 {[%emt 0:00:37]} Bg3 {[%emt 0:06:06]} 39. Kxb6 {[%emt 0:01:35]} h5 {[%emt 0:00:06]} 40. Kxa5 {[%emt 0:00:00]} hxg4 {[%emt 0:00:00]} 41. fxg4 {[%emt 0:00:33]} Rxg4 {[%emt 0:03:13]} 42. Bd3 {[%emt 0:00:09]} Bc7+ {[%emt 0:02:09]} 43. Kb5 {[%emt 0:00:31]} Rg3 {[%emt 0:00:09]} 44. Kc4 {[%emt 0:00:18]} Kf6 {[%emt 0:01:07]} 45. b4 {[%emt 0:00:41]} cxb4 {[%emt 0:00:51]} 46. Kxd4 {[%emt 0:00:51]} Be5+ {[%emt 0:02:24]} 47. Kc4 {[%emt 0:00:06]} Bxb2 {[%emt 0:00:18]} 48. a5 {[%emt 0:00:23]} Ke5 {[%emt 0:00:42]} 49. a6 {[%emt 0:00:11]} Bd4 {[%emt 0:00:07]} 50. Bb1 {[%emt 0:00:57]} b3 {[%emt 0:00:23] Kxd4+} 0-1

[Event "WYCC 2018 G16"]
[Site "Halkidiki"]
[Date "2018.10.29"]
[Round "10"]
[White "Zhang, Cindy"]
[Black "Hajiyeva, Laman"]
[Result "0-1"]
[ECO "D00"]
[WhiteElo "1790"]
[BlackElo "1916"]
[Annotator "NA"]
[PlyCount "114"]
[EventDate "2018.10.20"]
[EventType "swiss"]
[EventCountry "GRE"]
[SourceTitle "playchess.com"]
[Source "ChessBase"]
[SourceQuality "1"]
[TimeControl "40/5400+30:1800+30"]

1. d4 {[%emt 0:00:00]} d5 {[%emt 0:00:00]} 2. Bf4 {[%emt 0:00:00]} Nf6 {[%emt 0:00:00]} 3. e3 {[%emt 0:00:00]} c5 {[%emt 0:01:03]} 4. Nc3 {[%emt 0:00:11]} e6 {[%emt 0:01:22]} 5. Nb5 {[%emt 0:01:44]} Na6 {[%emt 0:01:06]} 6. Nf3 {[%emt 0:02:30]} c4 {[%emt 0:06:25]} 7. a4 {[%emt 0:02:11]} Bd7 {[%emt 0:05:58]} 8. Be2 {[%emt 0:03:04]} Qa5+ {[%emt 0:09:48]} 9. c3 {[%emt 0:02:16]} Bxb5 {[%emt 0:03:29]} 10. axb5 {[%emt 0:00:09]} Qxb5 {[%emt 0:00:03]} 11. Nd2 $14 {[%emt 0:03:52]} ({Better is} 11. O-O $16) 11... Qb6 {[%emt 0:08:27]} 12. Qa4+ {[%emt 0:06:23]} Nd7 {[%emt 0:02:34]} 13. b3 {[%emt 0:06:12]} cxb3 {[%emt 0:11:05]} 14. Bb5 {[%emt 0:05:49]} Rd8 {[%emt 0:01:10]} 15. Nxb3 {[%emt 0:06:23]} Nc7 {[%emt 0:03:45]} 16. Bxd7+ {[%emt 0:17:05]} Rxd7 {[%emt 0:00:05]} 17. O-O {[%emt 0:01:15]} Nb5 {[%emt 0:09:03]} 18. Rfc1 {[%emt 0:07:58]} Be7 {[%emt 0:01:16]} 19. Nc5 {[%emt 0:04:38]} Bxc5 {[%emt 0:03:37]} 20. dxc5 {[%emt 0:00:07]} Qc6 {[%emt 0:01:28]} 21. Rcb1 {[%emt 0:14:48]} a6 {[%emt 0:01:43]} 22. Rxb5 {[%emt 0:07:14]} axb5 {[%emt 0:03:20]} 23. Qb4 {[%emt 0:00:30]} O-O {[%emt 0:00:30]} 24. Ra5 {[%emt 0:00:42]} f6 {[%emt 0:08:31]} 25. Bd6 {[%emt 0:01:54]} b6 {[%emt 0:04:40]} 26. Ra6 {[%emt 0:00:58]} Ra8 {[%emt 0:01:19]} 27. Qa3 {[%emt 0:00:48]} Rdd8 {[%emt 0:02:11]} 28. h3 {[%emt 0:00:52]} bxc5 {[%emt 0:00:41]} 29. Rxa8 {[%emt 0:01:01]} Rxa8 {[%emt 0:00:33]} 30. Qxc5 {[%emt 0:00:09]} Qxc5 {[%emt 0:00:11]} 31. Bxc5 {[%emt 0:00:02]} e5 {[%emt 0:00:17]} 32. g3 {[%emt 0:01:14]} Kf7 {[%emt 0:00:07]} 33. Kg2 {[%emt 0:02:17]} Rc8 {[%emt 0:00:29]} 34. Bb4 {[%emt 0:00:10]} Rc4 {[%emt 0:00:03]} 35. Ba5 {[%emt 0:01:02]} Ra4 {[%emt 0:00:36]} 36. Bb4 {[%emt 0:00:10]} d4 {[%emt 0:00:05]} 37. exd4 {[%emt 0:00:24]} exd4 {[%emt 0:00:01]} 38. Kf1 {[%emt 0:00:11]} d3 {[%emt 0:01:00]} 39. Ke1 {[%emt 0:00:11]} Ra2 {[%emt 0:00:02]} 40. Bc5 {[%emt 0:00:00]} Ke6 {[%emt 0:00:00]} 41. h4 {[%emt 0:03:44]} Kd5 {[%emt 0:02:51]} 42. Bf8 {[%emt 0:01:06]} g6 {[%emt 0:00:03]} 43. Bg7 {[%emt 0:00:41]} f5 {[%emt 0:00:16]} 44. Bf6 {[%emt 0:00:46]} Kc4 {[%emt 0:00:06]} 45. Bg7 {[%emt 0:01:36]} Kb3 46. Kd1 Rxf2 {[%emt 0:00:40]} 47. Bd4 {[%emt 0:00:45]} Rg2 48. Be5 b4 {[%emt 0:00:20]} 49. cxb4 {[%emt 0:00:22]} Kxb4 {[%emt 0:00:00]} 50. Bd6+ Kc4 {[%emt 0:00:00]} 51. Be5 {[%emt 0:01:09]} Kd5 52. Bc7 {[%emt 0:00:22]} Ke4 {[%emt 0:00:26]} 53. Bd6 {[%emt 0:00:15]} Kf3 {[%emt 0:00:05]} 54. Ke1 {[%emt 0:00:26]} d2+ {[%emt 0:00:20]} 55. Kd1 {[%emt 0:00:08]} Ke3 {[%emt 0:00:03]} 56. Bc5+ {[%emt 0:01:04]} Kd3 {[%emt 0:00:05]} 57. h5 {[%emt 0:00:32]} Re2 0-1

[Event "WYCC 2018 G16"]
[Site "Halkidiki"]
[Date "2018.10.29"]
[Round "10"]
[White "Sabiani, Chjara"]
[Black "Moerwald, Magdalena"]
[Result "1-0"]
[ECO "A67"]
[WhiteElo "1778"]
[BlackElo "1875"]
[Annotator "NA"]
[PlyCount "77"]
[EventDate "2018.10.20"]
[EventType "swiss"]
[EventCountry "GRE"]
[SourceTitle "playchess.com"]
[Source "ChessBase"]
[SourceQuality "1"]
[TimeControl "40/5400+30:1800+30"]

1. d4 {[%emt 0:00:00]} Nf6 {[%emt 0:00:00]} 2. c4 {[%emt 0:00:00]} c5 {[%emt 0:00:00]} 3. d5 {[%emt 0:00:00]} e6 {[%emt 0:00:00]} 4. Nc3 {[%emt 0:00:00]} exd5 {[%emt 0:00:00]} 5. cxd5 {[%emt 0:00:03]} d6 {[%emt 0:00:06]} 6. e4 {[%emt 0:00:07]} g6 {[%emt 0:00:06]} 7. f4 {[%emt 0:00:05]} Bg7 {[%emt 0:00:10]} 8. Bb5+ {[%emt 0:00:05]} Nfd7 {[%emt 0:00:32]} 9. a4 {[%emt 0:00:10]} O-O {[%emt 0:02:16]} 10. Nf3 {[%emt 0:00:16]} Na6 {[%emt 0:05:04]} 11. O-O {[%emt 0:00:24]} Re8 {[%emt 0:01:57]} 12. Re1 {[%emt 0:00:29]} Nc7 {[%emt 0:07:41]} 13. Bd3 {[%emt 0:04:03]} a6 {[%emt 0:02:20]} 14. Be3 {[%emt 0:01:00]} Rb8 {[%emt 0:04:00]} 15. Bf2 {[%emt 0:04:37]} b5 {[%emt 0:04:50]} 16. Bh4 {[%emt 0:04:14]} Bf6 {[%emt 0:04:08]} 17. Bxf6 {[%emt 0:00:40]} Qxf6 {[%emt 0:06:15]} 18. Qd2 {[%emt 0:08:30]} b4 {[%emt 0:05:25]} 19. Nd1 {[%emt 0:02:22]} a5 {[%emt 0:02:17]} 20. Rc1 {[%emt 0:09:36]} Ba6 {[%emt 0:11:19]} 21. Bxa6 {[%emt 0:02:54]} Nxa6 {[%emt 0:00:12]} 22. b3 {[%emt 0:00:49]} Rbc8 {[%emt 0:04:32]} 23. Nb2 {[%emt 0:03:27]} Nb6 {[%emt 0:03:36]} 24. Nc4 {[%emt 0:01:34]} Nxc4 {[%emt 0:01:52]} 25. Rxc4 {[%emt 0:00:11]} Nc7 {[%emt 0:02:50]} 26. e5 {[%emt 0:06:07]} Qd8 {[%emt 0:03:08]} 27. Rce4 {[%emt 0:15:03]} Qd7 {[%emt 0:07:45]} 28. e6 {[%emt 0:03:46]} fxe6 {[%emt 0:03:34]} 29. dxe6 {[%emt 0:01:02]} Qe7 {[%emt 0:01:38]} 30. Ng5 {[%emt 0:07:41]} d5 {[%emt 0:03:16]} 31. R4e3 {[%emt 0:01:43]} h6 {[%emt 0:01:40]} 32. Nf7 {[%emt 0:00:35]} h5 {[%emt 0:01:27]} 33. f5 {[%emt 0:00:50]} Qf6 {[%emt 0:04:11]} 34. Rg3 {[%emt 0:02:07]} Qd4+ {[%emt 0:01:17]} 35. Qxd4 {[%emt 0:00:04]} cxd4 {[%emt 0:00:07]} 36. Rxg6+ {[%emt 0:00:09]} Kf8 37. Nd6 {[%emt 0:00:22]} Na6 {[%emt 0:01:52]} 38. Nxc8 {[%emt 0:00:23]} Rxc8 {[%emt 0:00:06]} 39. e7+ {[%emt 0:00:04]} 1-0